bitfinex-derivatives/quotes_BTCF0:USTF0_20250609
["timestamp","ask_amount","ask_price","bid_price","bid_amount"]
[1749489209899,0.54121754,108080.0,108070.0,1.02245566]
[1749489210592,0.54121754,108080.0,108070.0,0.79023998]
[1749489210785,0.54121754,108080.0,108070.0,1.02245566]
[1749489211787,0.54527414,108080.0,108070.0,1.02245566]
[1749489212895,0.54121754,108080.0,108070.0,1.02245566]
[1749489214288,0.50221754,108080.0,108070.0,1.02245566]
[1749489214594,0.6535675,108080.0,108070.0,0.75273998]
[1749489214799,0.6925675,108080.0,108070.0,0.75273998]
[1749489216402,0.6925675,108080.0,108070.0,0.98495566]
[1749489216601,0.6935675,108080.0,108070.0,0.98495566]
[1749489216801,0.6935675,108080.0,108070.0,1.1285254]
[1749489217004,0.6935675,108080.0,108070.0,0.89630972]
[1749489217496,0.7319675,108080.0,108070.0,0.78187903]
[1749489218005,0.7360241,108080.0,108070.0,0.78187903]
[1749489218901,0.7319675,108080.0,108070.0,0.78187903]
[1749489219103,0.80414301,108080.0,108070.0,0.78187903]
[1749489219801,0.80414301,108080.0,108070.0,1.01409471]
[1749489220003,0.80414301,108080.0,108070.0,1.05199471]
[1749489221295,0.76514301,108080.0,108070.0,1.0319498]
[1749489221908,0.76514301,108080.0,108070.0,1.23291154]
[1749489222100,0.76514301,108080.0,108070.0,1.19501154]
[1749489222496,0.76514301,108080.0,108070.0,0.9940498]
[1749489222693,0.76514301,108080.0,108070.0,0.89682939]
[1749489222892,0.97731378,108080.0,108070.0,0.63830929]
[1749489223105,0.97731378,108080.0,108070.0,0.75328477]
[1749489224097,0.98137038,108080.0,108070.0,0.75328477]
[1749489224305,0.76919961,108080.0,108070.0,0.75328477]
[1749489225999,0.76514301,108080.0,108070.0,0.75328477]
[1749489228504,0.72614301,108080.0,108070.0,0.75328477]
[1749489229910,0.90622301,108080.0,108070.0,0.75328477]
[1749489235411,0.86722301,108080.0,108070.0,0.75328477]
[1749489236015,0.33362301,108080.0,108070.0,0.75328477]
[1749489236217,0.29462301,108080.0,108070.0,1.00345554]
[1749489236514,0.79014301,108080.0,108070.0,1.04105554]
[1749489236814,0.79014301,108080.0,108070.0,0.96578006]
[1749489237708,0.35910301,108080.0,108070.0,0.96578006]
[1749489237913,0.79010301,108080.0,108070.0,1.1093498]
[1749489239424,0.78970301,108080.0,108070.0,1.1093498]
[1749489239723,0.79010301,108080.0,108070.0,1.1093498]
[1749489242721,0.60701551,108080.0,108070.0,1.1093498]
[1749489243022,0.79196981,108080.0,108070.0,1.1093498]
[1749489243626,0.75296981,108080.0,108070.0,1.1093498]
[1749489247626,0.56801551,108080.0,108070.0,1.1093498]
[1749489248030,0.75296981,108080.0,108070.0,1.1093498]
[1749489249125,0.56801551,108080.0,108070.0,1.1093498]
[1749489249631,0.75296981,108080.0,108070.0,1.1093498]
[1749489250227,0.56801551,108080.0,108070.0,1.1093498]
[1749489250730,0.52901551,108080.0,108070.0,1.1093498]
[1749489250925,0.10248,108080.0,108070.0,1.1093498]
[1749489251230,0.64567763,108080.0,108070.0,1.22449213]
[1749489251431,0.64567763,108080.0,108070.0,1.08092239]
[1749489253030,0.83063193,108080.0,108070.0,1.08092239]
[1749489255533,0.64567763,108080.0,108070.0,1.08092239]
[1749489256033,0.64567763,108080.0,108070.0,0.96578006]
[1749489256034,0.07267188,108080.0,108070.0,0.96578006]
[1749489256235,0.53336,108080.0,108070.0,1.1667418]
[1749489256434,0.38869715,108090.0,108080.0,0.1849544]
[1749489256635,0.56089445,108090.0,108080.0,1.09619313]
[1749489256934,0.56129445,108090.0,108080.0,0.95226334]
[1749489257236,0.53376,108090.0,108080.0,1.07358329]
[1749489257423,0.43088,108090.0,108080.0,1.07358329]
[1749489257625,0.21155992,108100.0,108090.0,0.1849373]
[1749489257829,0.55777251,108100.0,108090.0,1.07934852]
[1749489258127,0.73609276,108100.0,108090.0,1.12558112]
[1749489258330,0.73609276,108100.0,108090.0,1.21810089]
[1749489258528,0.80869137,108100.0,108090.0,1.21810089]
[1749489258729,0.80909137,108100.0,108090.0,1.21810089]
[1749489258925,0.80909137,108100.0,108090.0,1.00593012]
[1749489259534,0.81009137,108100.0,108090.0,1.00593012]
[1749489259737,0.81009137,108100.0,108090.0,0.89085137]
[1749489260632,0.81009137,108100.0,108090.0,1.00587679]
[1749489261743,0.81009137,108100.0,108090.0,1.21804756]
[1749489262042,0.83495019,108100.0,108090.0,1.21804756]
[1749489262234,0.83495019,108100.0,108090.0,1.18004756]
[1749489262940,0.83495019,108100.0,108090.0,0.96787679]
[1749489263638,0.83900679,108100.0,108090.0,0.96787679]
[1749489263940,1.41197756,108100.0,108090.0,0.48494419]
[1749489264143,1.12998764,108100.0,108090.0,0.48494419]
[1749489264338,0.59662764,108100.0,108090.0,0.84574419]
[1749489264538,0.38040027,108100.0,108090.0,0.56134419]
[1749489264838,0.79736017,108100.0,108090.0,1.13431496]
[1749489265036,0.18124007,108100.0,108090.0,1.13431496]
[1749489265237,0.07766999,108100.0,108090.0,1.13431496]
[1749489265540,0.09192412,108110.0,108100.0,0.1849202]
[1749489265838,0.53312,108130.0,108120.0,0.184886]
[1749489266037,0.7179889,108130.0,108120.0,0.91143319]
[1749489266229,0.7179889,108130.0,108120.0,0.622786]
[1749489266633,0.26048516,108130.0,108120.0,0.622786]
[1749489266833,0.79400516,108130.0,108120.0,0.71527154]
[1749489267034,0.79500516,108130.0,108120.0,0.71527154]
[1749489267342,0.81898867,108130.0,108120.0,0.92744231]
[1749489267838,0.07701626,108130.0,108120.0,1.13961308]
[1749489268034,0.02090491,108160.0,108150.0,0.1848347]
[1749489268236,0.0024,108180.0,108170.0,0.1848006]
[1749489268434,0.4269958,108190.0,108180.0,0.1847835]
[1749489268743,0.62495771,108190.0,108180.0,0.79605427]
[1749489268937,0.62495771,108190.0,108180.0,0.94881798]
[1749489269140,0.62535771,108190.0,108180.0,0.83445427]
[1749489269334,0.62535771,108190.0,108180.0,0.92689707]
[1749489269536,0.88484592,108190.0,108180.0,0.3539263]
[1749489269742,0.88484592,108190.0,108180.0,0.1691428]
[1749489270037,1.53781669,108190.0,108180.0,0.1308428]
[1749489270240,0.67643696,108190.0,108180.0,0.45497957]
[1749489270440,0.86080326,108190.0,108180.0,0.49327957]
[1749489270743,1.39424326,108190.0,108180.0,0.3539262]
[1749489270931,0.86120326,108190.0,108180.0,0.3156262]
[1749489271337,1.39424326,108190.0,108180.0,0.3539262]
[1749489271742,1.39424326,108190.0,108180.0,0.2772262]
[1749489271941,2.06863581,108190.0,108180.0,0.0924428]
[1749489272137,2.07024453,108190.0,108180.0,0.0924428]
[1749489272544,0.1847834,108180.0,108170.0,0.27732684]
[1749489272739,0.21441935,108180.0,108170.0,0.27732684]
[1749489272946,0.17391935,108180.0,108170.0,1.04295364]
[1749489273146,0.17431935,108180.0,108170.0,1.04295364]
[1749489273540,0.17391935,108180.0,108170.0,1.04295364]
[1749489273742,0.17431935,108180.0,108170.0,1.04295364]
[1749489274050,0.35910285,108180.0,108170.0,1.04295364]
[1749489274245,0.27663935,108180.0,108170.0,1.04295364]
[1749489274645,0.46142285,108180.0,108170.0,1.04295364]
[1749489275449,0.46142285,108180.0,108170.0,0.81236109]
[1749489275646,0.46142285,108180.0,108170.0,0.45156109]
[1749489276645,0.78958285,108180.0,108170.0,1.04395364]
[1749489276842,0.35910285,108180.0,108170.0,1.04395364]
[1749489277042,0.89190285,108180.0,108170.0,1.04395364]
[1749489277241,0.17431935,108180.0,108170.0,1.04395364]
[1749489277443,0.35870285,108180.0,108170.0,1.04395364]
[1749489277649,0.17431935,108180.0,108170.0,1.04395364]
[1749489277850,0.17431935,108180.0,108170.0,1.04295364]
[1749489278546,0.70707935,108180.0,108170.0,1.04295364]
[1749489279353,2.20707935,108180.0,108170.0,1.04295364]
[1749489279549,1.67431935,108180.0,108170.0,1.04295364]
[1749489279950,1.67391935,108180.0,108170.0,1.04295364]
[1749489280149,1.67431935,108180.0,108170.0,1.04295364]
[1749489280356,0.13593815,108180.0,108170.0,1.04295364]
[1749489280546,0.13593815,108180.0,108170.0,1.13539364]
[1749489280750,0.13633815,108180.0,108170.0,1.13539364]
[1749489281051,0.13593815,108180.0,108170.0,0.90480109]
[1749489281246,0.39926565,108190.0,108180.0,0.1847835]
[1749489281446,0.39926565,108190.0,108180.0,0.89877605]
[1749489281652,0.39966565,108190.0,108180.0,0.89877605]
[1749489281856,0.39966565,108190.0,108180.0,0.9912103]
[1749489282551,0.39926565,108190.0,108180.0,1.0836423]
[1749489282751,0.39966565,108190.0,108180.0,1.0836423]
[1749489283246,0.39966565,108190.0,108180.0,1.22225694]
[1749489283445,0.39926565,108190.0,108180.0,1.65261694]
[1749489283751,0.00651518,108210.0,108190.0,0.0923766]
[1749489284052,0.00639817,108220.0,108210.0,0.1847323]
[1749489284257,0.4,108230.0,108220.0,0.1847152]
[1749489284457,0.4,108230.0,108220.0,1.24806775]
[1749489284756,0.00490764,108270.0,108260.0,0.184647]
[1749489284955,0.46798739,108280.0,108270.0,0.1846299]
[1749489285150,0.65260029,108280.0,108270.0,0.9780699]
[1749489285348,0.78708235,108280.0,108270.0,1.02503255]
[1749489285552,0.80768129,108280.0,108270.0,0.68479264]
[1749489285748,0.91263739,108280.0,108270.0,0.09240009]
[1749489285949,1.17682199,108280.0,108270.0,0.09240009]
[1749489286154,1.8743818,108280.0,108270.0,0.09240009]
[1749489286458,1.3387418,108280.0,108270.0,0.09240009]
[1749489286658,2.3384469,108280.0,108270.0,0.09240009]
[1749489287060,2.3804469,108280.0,108270.0,0.09240009]
[1749489287361,2.3804469,108280.0,108250.0,0.00013894]
[1749489287362,0.1846466,108260.0,108250.0,0.00013894]
[1749489287656,1.31375915,108260.0,108250.0,0.00013894]
[1749489287860,2.34187666,108260.0,108250.0,0.00013894]
[1749489289264,2.09187666,108260.0,108250.0,0.00013894]
[1749489290272,1.99942066,108260.0,108250.0,0.00013894]
[1749489290959,1.46278066,108260.0,108250.0,0.00013894]
[1749489291264,1.63878066,108260.0,108250.0,0.00013894]
[1749489291457,1.10238066,108260.0,108250.0,0.18480254]
[1749489291757,1.63906066,108260.0,108250.0,0.09249636]
[1749489291963,1.19475666,108260.0,108250.0,0.09249636]
[1749489292264,1.73147666,108260.0,108250.0,0.09249636]
[1749489292660,0.1847149,108220.0,108210.0,0.718484]
[1749489292855,0.23159255,108220.0,108210.0,0.718484]
[1749489293059,0.083,108230.0,108220.0,0.27708938]
[1749489293359,0.24634151,108230.0,108220.0,0.81780745]
[1749489293558,0.24634151,108230.0,108220.0,1.29098193]
[1749489293754,0.24674151,108230.0,108220.0,1.42877885]
[1749489293957,0.24634151,108230.0,108220.0,0.8547863]
[1749489294263,0.24674151,108230.0,108220.0,0.71698938]
[1749489294751,0.47833406,108230.0,108220.0,0.71698938]
[1749489294953,0.91353406,108230.0,108220.0,0.71798938]
[1749489295158,0.95533406,108230.0,108220.0,0.71798938]
[1749489295365,1.14003246,108230.0,108220.0,0.71798938]
[1749489295563,0.90843991,108230.0,108220.0,0.67958938]
[1749489296058,0.76464151,108230.0,108220.0,0.67958938]
[1749489296363,0.72374151,108230.0,108220.0,0.67958938]
[1749489296564,0.72374151,108230.0,108220.0,0.71828938]
[1749489296765,0.90843991,108230.0,108220.0,0.94988193]
[1749489297154,0.24674151,108230.0,108220.0,0.94988193]
[1749489297461,0.68118151,108230.0,108220.0,0.94988193]
[1749489297763,0.24674151,108230.0,108220.0,1.43100528]
[1749489298467,0.24634151,108230.0,108220.0,1.43100528]
[1749489298758,0.24674151,108230.0,108220.0,1.43100528]
[1749489300153,0.24674151,108230.0,108220.0,1.18100528]
[1749489300559,0.24674151,108230.0,108220.0,1.18400528]
[1749489300965,0.24674151,108230.0,108220.0,1.61968528]
[1749489303063,0.24674151,108230.0,108220.0,1.52728528]
[1749489303558,0.24674151,108230.0,108220.0,1.61968528]
[1749489303759,0.24674151,108230.0,108220.0,1.66148528]
[1749489303959,0.00013894,108240.0,108230.0,0.1846892]
[1749489304166,0.00013894,108240.0,108230.0,0.85418175]
[1749489304462,0.00053894,108240.0,108230.0,0.94657375]
[1749489304663,0.00053894,108240.0,108230.0,1.03897384]
[1749489304869,0.00053894,108240.0,108230.0,1.38202184]
[1749489305071,0.00053894,108240.0,108230.0,0.94658184]
[1749489305274,0.00053894,108240.0,108230.0,1.38398184]
[1749489305572,0.00053894,108240.0,108230.0,1.47637384]
[1749489305769,0.00053894,108240.0,108230.0,1.61568795]
[1749489306165,4e-08,108240.0,108230.0,2.0972805]
[1749489306466,0.5425,108270.0,108260.0,0.1846373]
[1749489306665,0.6471,108270.0,108260.0,0.77702985]
[1749489306865,2.3317202,108270.0,108260.0,0.77702985]
[1749489307067,1.64558839,108280.0,108270.0,0.1846202]
[1749489307371,1.76634839,108280.0,108270.0,0.1846202]
[1749489307567,0.1846202,108270.0,108260.0,0.5454229]
[1749489307769,0.1846373,108260.0,108250.0,0.59174004]
[1749489308066,0.1846373,108260.0,108250.0,0.63793766]
[1749489308067,0.3054373,108260.0,108250.0,0.63793766]
[1749489308870,0.3054373,108260.0,108250.0,0.27713766]
[1749489309172,1.07690985,108260.0,108250.0,0.09249636]
[1749489310280,1.2061173,108260.0,108250.0,0.09249636]
[1749489310466,1.89662334,108260.0,108250.0,0.09249636]
[1749489310664,0.1846885,108230.0,108220.0,0.86943365]
[1749489310867,0.2892885,108230.0,108220.0,0.6378411]
[1749489311070,0.3661885,108230.0,108220.0,0.6378411]
[1749489311271,0.3661885,108230.0,108220.0,0.73021558]
[1749489311466,1.7615885,108230.0,108220.0,0.09237448]
[1749489311674,2.89378105,108230.0,108220.0,0.09237448]
[1749489311975,1.50789463,108230.0,108220.0,0.09237448]
[1749489312165,0.73650208,108230.0,108220.0,0.09237448]
[1749489312364,0.37610208,108230.0,108220.0,0.27708008]
[1749489312569,0.87611534,108230.0,108220.0,0.63788008]
[1749489312776,0.87611534,108230.0,108220.0,0.27708008]
[1749489313072,0.69130684,108230.0,108220.0,0.63788008]
[1749489313277,0.33587534,108230.0,108220.0,0.63788008]
[1749489313470,0.87555534,108230.0,108220.0,0.63788008]
[1749489313674,0.87595534,108230.0,108220.0,0.63788008]
[1749489315378,0.33587534,108230.0,108220.0,0.63788008]
[1749489315676,0.87567534,108230.0,108220.0,0.63788008]
[1749489315978,0.69098684,108230.0,108220.0,0.63788008]
[1749489316176,0.87567534,108230.0,108220.0,0.63788008]
[1749489316675,0.33587534,108230.0,108220.0,0.63788008]
[1749489316875,0.87555534,108230.0,108220.0,0.63788008]
[1749489318071,0.33587534,108230.0,108220.0,0.63788008]
[1749489318270,0.87551534,108230.0,108220.0,0.63788008]
[1749489318975,0.15118684,108230.0,108220.0,0.63788008]
[1749489319175,0.87547534,108230.0,108220.0,0.63788008]
[1749489319470,0.21722684,108230.0,108220.0,0.90897263]
[1749489319675,1.57428684,108230.0,108220.0,0.94877263]
[1749489319876,0.61360684,108230.0,108220.0,0.94877263]
[1749489320077,0.07428684,108230.0,108220.0,0.94877263]
[1749489320265,0.0004,108230.0,108220.0,0.94877263]
[1749489320464,1.82845034,108240.0,108230.0,0.1846885]
[1749489320673,2.26345034,108240.0,108230.0,0.89538105]
[1749489320868,1.53913894,108240.0,108230.0,0.89538105]
[1749489321077,2.08021894,108240.0,108230.0,0.98778114]
[1749489321264,2.08041894,108240.0,108230.0,0.75618859]
[1749489321470,2.08081894,108240.0,108230.0,0.98778114]
[1749489321874,1.53953894,108240.0,108230.0,0.98778114]
[1749489322074,1.50053894,108240.0,108230.0,0.98778114]
[1749489322375,0.00013894,108240.0,108230.0,0.98778114]
[1749489322779,0.00053894,108240.0,108230.0,0.98778114]
[1749489323075,0.00053894,108240.0,108230.0,0.75618859]
[1749489323272,0.00053894,108240.0,108230.0,0.98778114]
[1749489323470,0.00053894,108240.0,108230.0,0.98878114]
[1749489325076,0.00013894,108240.0,108230.0,0.98878114]
[1749489325288,0.00053894,108240.0,108230.0,0.98878114]
[1749489325581,0.00053894,108240.0,108230.0,1.08117314]
[1749489325879,0.00013894,108240.0,108230.0,1.08117314]
[1749489326273,0.00013894,108240.0,108230.0,1.51877314]
[1749489326475,0.00013894,108240.0,108230.0,1.51977314]
[1749489326676,0.00053894,108240.0,108230.0,1.08217314]
[1749489326980,0.00053894,108240.0,108230.0,0.98978114]
[1749489327279,0.18521034,108240.0,108230.0,0.68008859]
[1749489327476,0.26591034,108240.0,108230.0,0.63988859]
[1749489327977,0.26591034,108240.0,108230.0,0.45320009]
[1749489328177,0.49750289,108240.0,108230.0,0.09340009]
[1749489328684,0.85830289,108240.0,108230.0,0.09340009]
[1749489328985,1.20069489,108240.0,108230.0,0.09340009]
[1749489329285,0.1847056,108220.0,108210.0,0.18496134]
[1749489329484,0.96013815,108220.0,108210.0,0.00023874]
[1749489329679,0.96013815,108220.0,108210.0,0.09263029]
[1749489329882,0.7285456,108220.0,108210.0,0.27735289]
[1749489330076,0.1847056,108220.0,108210.0,0.63815289]
[1749489330275,0.7285856,108220.0,108210.0,0.63815289]
[1749489330481,0.7293056,108220.0,108210.0,0.63815289]
[1749489331380,0.1851056,108220.0,108210.0,0.63815289]
[1749489331685,0.7292656,108220.0,108210.0,0.63815289]
[1749489332277,0.8117656,108220.0,108210.0,0.63815289]
[1749489332585,0.83317986,108220.0,108210.0,0.63815289]
[1749489333587,0.8117656,108220.0,108210.0,0.63815289]
[1749489333785,0.2676056,108220.0,108210.0,0.63815289]
[1749489333991,0.54628,108220.0,108210.0,0.86974544]
[1749489334289,0.7309855,108220.0,108210.0,0.98954544]
[1749489334487,0.7309855,108220.0,108210.0,0.75795289]
[1749489335192,0.7309855,108220.0,108210.0,0.67855289]
[1749489335385,0.7710855,108220.0,108210.0,0.63815289]
[1749489335683,0.8113855,108220.0,108210.0,0.63815289]
[1749489336687,0.0004,108220.0,108210.0,0.86974544]
[1749489336884,0.33203988,108240.0,108230.0,0.1846885]
[1749489337094,0.00013894,108240.0,108230.0,0.77708105]
[1749489337394,0.73125034,108240.0,108230.0,0.85918105]
[1749489337589,0.73165034,108240.0,108230.0,0.95158968]
[1749489337791,0.73165034,108240.0,108230.0,0.71999713]
[1749489338386,0.73125034,108240.0,108230.0,0.71999713]
[1749489338593,0.54697894,108240.0,108230.0,0.71999713]
[1749489338793,0.73165034,108240.0,108230.0,0.71999713]
[1749489339093,0.54673894,108240.0,108230.0,0.95158968]
[1749489339293,0.73141034,108240.0,108230.0,0.95158968]
[1749489339684,0.10629894,108240.0,108230.0,0.95158968]
[1749489339880,0.54613894,108240.0,108230.0,1.42689532]
[1749489340086,0.54653894,108240.0,108230.0,1.42689532]
[1749489340687,0.00053894,108240.0,108230.0,1.42689532]
[1749489340884,0.44061894,108240.0,108230.0,1.42689532]
[1749489341090,0.44061894,108240.0,108230.0,1.42789532]
[1749489341291,0.00053894,108240.0,108230.0,1.42789532]
[1749489341493,0.00053894,108240.0,108230.0,1.45652173]
[1749489342496,0.00013894,108240.0,108230.0,1.68660416]
[1749489342796,0.00053894,108240.0,108230.0,1.68660416]
[1749489342996,0.00013894,108240.0,108230.0,1.68660416]
[1749489343194,0.00053894,108240.0,108230.0,1.68660416]
[1749489343392,0.00053894,108240.0,108230.0,1.68760416]
[1749489344396,0.00053894,108240.0,108230.0,2.12704416]
[1749489344799,0.00053894,108240.0,108230.0,1.68760416]
[1749489344998,0.00053894,108240.0,108230.0,2.12696416]
[1749489345296,0.00053894,108240.0,108230.0,1.22048756]
[1749489345499,0.18521034,108240.0,108230.0,1.08279703]
[1749489345696,0.18521034,108240.0,108230.0,1.19702715]
[1749489345899,0.00053894,108240.0,108230.0,1.31438958]
[1749489346292,0.00053894,108240.0,108230.0,1.4286197]
[1749489346493,0.00013894,108240.0,108230.0,1.4266197]
[1749489346795,0.00053894,108240.0,108230.0,1.4276197]
[1749489347598,0.00053894,108240.0,108230.0,1.31238958]
[1749489347802,1.8650718,108260.0,108250.0,0.1846544]
[1749489348000,1.6804345,108260.0,108250.0,1.13784695]
[1749489348195,1.6804345,108260.0,108250.0,1.22114695]
[1749489348501,1.6804345,108260.0,108250.0,1.3135385]
[1749489348700,1.6808345,108260.0,108250.0,1.3135385]
[1749489349104,1.6804345,108260.0,108250.0,1.3135385]
[1749489349305,1.6808345,108260.0,108250.0,1.3135385]
[1749489349598,1.6808345,108260.0,108250.0,1.08194595]
[1749489349804,1.6808345,108260.0,108250.0,1.3135385]
[1749489350099,1.5750745,108260.0,108250.0,1.3135385]
[1749489350403,1.01426739,108280.0,108270.0,0.1846198]
[1749489350591,1.27310942,108280.0,108270.0,0.77701235]
[1749489350797,2.79158731,108280.0,108270.0,0.85991235]
[1749489351000,2.79158731,108280.0,108270.0,0.95226977]
[1749489351201,1.10738451,108280.0,108270.0,0.95226977]
[1749489351400,1.29198711,108280.0,108270.0,0.95226977]
[1749489351597,1.29198711,108280.0,108270.0,0.63777722]
[1749489351797,2.87578711,108280.0,108270.0,0.63777722]
[1749489354099,2.87694711,108280.0,108270.0,0.63777722]
[1749489355806,3.10853966,108280.0,108270.0,0.45315742]
[1749489356008,2.87694711,108280.0,108270.0,0.63777652]
[1749489356599,3.10853966,108280.0,108270.0,0.45315742]
[1749489356804,2.06169966,108280.0,108270.0,0.09235742]
[1749489357004,2.31294707,108280.0,108270.0,0.09235742]
[1749489357199,2.06294707,108280.0,108270.0,0.09235742]
[1749489358098,0.78700711,108280.0,108270.0,0.86936787]
[1749489358294,1.33416711,108280.0,108270.0,0.98826787]
[1749489358499,1.33376711,108280.0,108270.0,0.75667532]
[1749489358709,1.33416711,108280.0,108270.0,0.75667532]
[1749489358910,0.54262662,108280.0,108270.0,0.98826787]
[1749489359209,2.58966662,108280.0,108270.0,0.98826787]
[1749489359412,2.77386682,108280.0,108270.0,0.75667532]
[1749489359608,2.77426682,108280.0,108270.0,0.75667532]
[1749489360407,2.22722682,108280.0,108270.0,0.75667532]
[1749489360611,2.77402682,108280.0,108270.0,0.75667532]
[1749489360804,2.66654682,108280.0,108270.0,0.75667532]
[1749489361004,2.66614682,108280.0,108270.0,0.75667532]
[1749489361310,2.66654682,108280.0,108270.0,0.75667532]
[1749489361607,2.6855806,108280.0,108270.0,0.75667532]
[1749489361815,2.74864682,108280.0,108270.0,0.75667532]
[1749489362313,2.77422522,108280.0,108270.0,0.98826787]
[1749489362514,2.77382522,108280.0,108270.0,0.98826787]
[1749489362714,2.77422522,108280.0,108270.0,0.98826787]
[1749489362908,2.77422522,108280.0,108270.0,0.75667532]
[1749489363711,3.00581777,108280.0,108270.0,0.63777532]
[1749489363907,2.89848522,108280.0,108270.0,0.63777532]
[1749489364312,2.35152522,108280.0,108270.0,0.63777532]
[1749489364512,2.89860522,108280.0,108270.0,0.63777532]
[1749489364711,2.89860522,108280.0,108270.0,0.71997532]
[1749489365121,2.89860522,108280.0,108270.0,0.67987532]
[1749489365715,2.89860522,108280.0,108270.0,0.63777532]
[1749489365914,2.04262662,108280.0,108270.0,0.86936787]
[1749489366120,2.77438792,108280.0,108270.0,0.99276787]
[1749489366510,2.77398792,108280.0,108270.0,0.99276787]
[1749489366713,2.77438792,108280.0,108270.0,0.99276787]
[1749489366915,2.77438792,108280.0,108270.0,0.76117532]
[1749489368014,2.04262662,108280.0,108270.0,0.76117532]
[1749489368320,2.22722762,108280.0,108270.0,0.87535666]
[1749489368519,2.48914662,108280.0,108270.0,0.87535666]
[1749489368718,2.67414762,108280.0,108270.0,1.10694921]
[1749489368913,2.71634762,108280.0,108270.0,0.63777532]
[1749489369121,2.91094762,108280.0,108270.0,0.63777532]
[1749489369616,2.91094762,108280.0,108270.0,0.45315742]
[1749489369813,2.61641493,108280.0,108270.0,0.09235742]
[1749489370010,2.61802232,108280.0,108270.0,0.09235742]
[1749489370209,0.1846512,108250.0,108240.0,0.47512028]
[1749489370425,0.7465712,108250.0,108240.0,0.47512028]
[1749489370621,1.01906375,108250.0,108240.0,0.11432028]
[1749489370933,1.01906375,108250.0,108240.0,0.09249636]
[1749489371331,1.11144775,108250.0,108240.0,0.09249636]
[1749489371637,1.47224775,108250.0,108240.0,0.09249636]
[1749489371829,1.51135595,108250.0,108240.0,0.09249636]
[1749489372025,1.51135595,108250.0,108240.0,0.09349636]
[1749489373534,1.58605595,108250.0,108240.0,0.09349636]
[1749489373938,1.54694775,108250.0,108240.0,0.09349636]
[1749489374124,1.60416252,108250.0,108240.0,0.09349636]
[1749489374326,0.184686,108230.0,108220.0,0.1851805]
[1749489374529,0.634766,108230.0,108220.0,0.2265805]
[1749489374727,0.674966,108230.0,108220.0,0.31896352]
[1749489375140,0.69432979,108230.0,108220.0,0.31896352]
[1749489375731,0.69432979,108230.0,108220.0,0.32196352]
[1749489376343,0.69432979,108230.0,108220.0,0.36166352]
[1749489377040,0.69432979,108230.0,108220.0,0.32196352]
[1749489377741,1.00082234,108230.0,108220.0,0.09586302]
[1749489377931,1.00082234,108230.0,108220.0,0.64136532]
[1749489378239,0.01936379,108230.0,108220.0,0.64136532]
[1749489378444,0.29680714,108240.0,108230.0,0.1846853]
[1749489378742,0.74680714,108240.0,108230.0,0.89957785]
[1749489379038,0.76615959,108240.0,108230.0,0.76037685]
[1749489379537,0.76655959,108240.0,108230.0,0.76037685]
[1749489379735,0.76655959,108240.0,108230.0,0.76137685]
[1749489379933,0.76655959,108240.0,108230.0,0.76137505]
[1749489380341,0.80935959,108240.0,108230.0,0.76137505]
[1749489380541,0.80935959,108240.0,108230.0,0.40057505]
[1749489381541,1.04095214,108240.0,108230.0,0.13309155]
[1749489381737,1.40175214,108240.0,108230.0,0.09339155]
[1749489381937,1.07325214,108240.0,108230.0,0.09339155]
[1749489382240,1.43405214,108240.0,108230.0,0.13379155]
[1749489382641,1.07325214,108240.0,108230.0,0.13379155]
[1749489382846,1.40175214,108240.0,108230.0,0.31847555]
[1749489383147,1.40175214,108240.0,108230.0,0.13379155]
[1749489383441,1.04095214,108240.0,108230.0,0.13379155]
[1749489383644,0.80935959,108240.0,108230.0,0.31847565]
[1749489384037,0.80935959,108240.0,108230.0,0.36057565]
[1749489384241,0.24735959,108240.0,108230.0,0.36057565]
[1749489384545,0.80811959,108240.0,108230.0,0.76047565]
[1749489384745,0.80851959,108240.0,108230.0,0.76047565]
[1749489385239,0.76547959,108240.0,108230.0,0.76047565]
[1749489385440,0.20415959,108240.0,108230.0,0.76047565]
[1749489385742,0.44937894,108240.0,108230.0,0.76047565]
[1749489385936,0.74604744,108240.0,108230.0,0.76047565]
[1749489386341,0.74604744,108240.0,108230.0,0.21499155]
[1749489386545,0.97763999,108240.0,108230.0,0.13379155]
[1749489386743,1.02043999,108240.0,108230.0,0.31847665]
[1749489387645,1.02043999,108240.0,108230.0,0.13379155]
[1749489388047,0.78884744,108240.0,108230.0,0.67927665]
[1749489388240,0.80731408,108240.0,108230.0,0.67927665]
[1749489388936,0.80731408,108240.0,108230.0,0.72497665]
[1749489389449,0.80731408,108240.0,108230.0,0.54029155]
[1749489389642,1.03890663,108240.0,108230.0,0.67927665]
[1749489390349,0.24647408,108240.0,108230.0,0.67927665]
[1749489390551,0.80679408,108240.0,108230.0,0.72497665]
[1749489390845,0.76359408,108240.0,108230.0,0.72497665]
[1749489391148,0.76399408,108240.0,108230.0,0.72497665]
[1749489392247,0.76399408,108240.0,108230.0,0.54029155]
[1749489392448,1.40248663,108240.0,108230.0,0.13379155]
[1749489392643,1.08368663,108240.0,108230.0,0.09339155]
[1749489393047,0.85209408,108240.0,108230.0,0.09339155]
[1749489393246,1.44448663,108240.0,108230.0,0.09339155]
[1749489394144,1.08368663,108240.0,108230.0,0.45419155]
[1749489394453,0.20367408,108240.0,108230.0,0.63887655]
[1749489394654,0.76323408,108240.0,108230.0,0.77317655]
[1749489394956,0.76283408,108240.0,108230.0,0.77317655]
[1749489395155,0.76323408,108240.0,108230.0,0.77317655]
[1749489395355,0.20367408,108240.0,108230.0,0.77317655]
[1749489395554,0.76363408,108240.0,108230.0,0.77317655]
[1749489395756,0.20367408,108240.0,108230.0,0.77317655]
[1749489396057,0.76367408,108240.0,108230.0,0.77317655]
[1749489396659,0.76367408,108240.0,108230.0,0.58849155]
[1749489397043,0.99526663,108240.0,108230.0,0.49719155]
[1749489397248,1.08366663,108240.0,108230.0,0.13639155]
[1749489397551,1.12566663,108240.0,108230.0,0.13639155]
[1749489398254,1.12566663,108240.0,108230.0,0.09339155]
[1749489398752,1.48646663,108240.0,108230.0,0.09339155]
[1749489399547,1.16449273,108240.0,108230.0,0.09339155]
[1749489400446,1.52529273,108240.0,108230.0,0.09339155]
[1749489401148,1.91018528,108240.0,108230.0,0.09339155]
[1749489401353,1.91018528,108240.0,108230.0,0.001]
[1749489402849,1.75688528,108240.0,108230.0,0.001]
[1749489403754,1.19688528,108240.0,108230.0,0.001]
[1749489404066,1.16325273,108240.0,108230.0,0.001]
[1749489404259,0.67409273,108240.0,108230.0,0.09339155]
[1749489404460,1.12081273,108240.0,108230.0,0.13819155]
[1749489404658,1.12121273,108240.0,108230.0,0.13819155]
[1749489404865,0.56249273,108240.0,108230.0,0.13819155]
[1749489405163,1.12101273,108240.0,108230.0,0.13819155]
[1749489405358,1.12101273,108240.0,108230.0,0.32287605]
[1749489405551,0.51809273,108240.0,108230.0,0.36707605]
[1749489405862,1.03249273,108240.0,108230.0,0.36707605]
[1749489406061,1.03209273,108240.0,108230.0,0.40977605]
[1749489406253,1.03249273,108240.0,108230.0,0.40977605]
[1749489406453,1.03249273,108240.0,108230.0,0.22509155]
[1749489406661,1.03249273,108240.0,108230.0,0.40977525]
[1749489406964,1.03249273,108240.0,108230.0,0.22509155]
[1749489407655,1.03235529,108240.0,108230.0,0.22509155]
[1749489408663,1.07655529,108240.0,108230.0,0.22509155]